fUSD/lending_fUSD_20240412
["ID","MTS","AMOUNT","RATE_DAILY","PERIOD"]
[322313401,1712947836625,-150.0,0.0002094,2]
[322313402,1712947836634,-150.0,0.00020947,2]
[322313403,1712947836644,-150.0,0.00020947,2]
[322313404,1712947836654,-150.0,0.00020948,2]
[322313405,1712947836664,-1000.0,0.00020948,2]
[322313406,1712947836673,-150.0,0.00020949,2]
[322313407,1712947836684,-232.40801987,0.0002095,2]
[322313408,1712947836694,-1500.0,0.00020952,2]
[322313409,1712947836703,-150.0,0.00020955,2]
[322313410,1712947836714,-150.0,0.00020956,2]
[322313411,1712947836724,-150.0,0.00020956,2]
[322313412,1712947836734,-300.0,0.00020959,2]
[322313413,1712947836744,-150.0,0.00020959,2]
[322313414,1712947836753,-150.0,0.0002096,2]
[322313415,1712947836764,-1500.0,0.00020963,2]
[322313416,1712947836774,-150.0,0.00020963,2]
[322313417,1712947836787,-150.0,0.00020967,2]
[322313418,1712947836796,-150.0,0.00020971,2]
[322313419,1712947836806,-150.0,0.00020977,2]
[322313420,1712947836821,-300.0,0.00020978,2]
[322313421,1712947836832,-150.0,0.00020981,2]
[322313422,1712947836842,-150.0,0.00020981,2]
[322313423,1712947836852,-150.0,0.00020983,2]
[322313424,1712947836863,-276.65,0.00020985,2]
[322313425,1712947836876,-1500.0,0.00020986,2]
[322313426,1712947836886,-300.0,0.00020986,2]
[322313427,1712947836895,-729.11274125,0.00020986,2]
[322313428,1712947836940,-770.88725875,0.00020986,2]
[322313429,1712947836951,-150.0,0.00020987,2]
[322313430,1712947836961,-1500.0,0.00020987,2]
[322313431,1712947836970,-150.0,0.00020989,2]
[322313432,1712947836980,-150.0,0.00020989,2]
[322313433,1712947836989,-2000.0,0.0002099,2]
[322313434,1712947836999,-200.0,0.0002099,2]
[322313435,1712947837010,-150.0,0.0002099,2]
[322313436,1712947837020,-449.3397428,0.0002099,2]
[322313437,1712947837034,-449.3397428,0.0002099,2]
[322313438,1712947837045,-276.65,0.0002099,2]
[322313439,1712947837055,-276.65,0.0002099,2]
[322313440,1712947837064,-276.65,0.0002099,2]
[322313441,1712947837075,-150.0,0.00020993,2]
[322313442,1712947837084,-27792.6425122,0.00020995,2]
[322313443,1712947837097,-34832.61574745,0.00020995,2]
[322313444,1712947837109,-3265.5419463,0.00020995,2]
[322313445,1712947837122,-1758.42368507,0.00020995,2]
[322313446,1712947837134,-1668.52189337,0.00020995,2]
[322313447,1712947837145,-2774.97349414,0.00020995,2]
[322313448,1712947837157,-527.18076,0.00020995,2]
[322313449,1712947837169,-5404.24892576,0.00020995,2]
[322313450,1712947837181,-1000.2,0.00020995,2]
[322313451,1712947837193,-10431.24115351,0.00020995,2]
[322313452,1712947837205,-14253.450181,0.00020995,2]
[322313453,1712947837215,-5628.849819,0.00020996,2]
[322313604,1712947839435,174.52,0.00020038,2]
[322313616,1712947839492,-164.23328005,0.00020102,2]
[322313618,1712947839502,-491.21005911,0.00020799,2]
[322313621,1712947839512,-500.0,0.00020799,2]
[322313624,1712947839522,-154.33518356,0.00020799,2]
[322313626,1712947839533,-8531.20276807,0.00020996,2]
[322313630,1712947839545,-1601.74078846,0.00020996,2]
[322313633,1712947839557,-3519.70227867,0.00020996,2]
[322313635,1712947839567,-3296.19454999,0.00020998,2]
[322313638,1712947839577,-155.0,0.00020998,2]
[322313641,1712947839587,-155.0,0.00020998,2]
[322313643,1712947839597,-366.46665112,0.00020998,2]
[322313645,1712947839607,-186.9981662,0.00020998,2]
[322313646,1712947839617,-987.17148381,0.00020999,2]
[322313647,1712947839629,-512.82851619,0.00020999,2]
[322313648,1712947839639,-500.0,0.00020999,2]
[322313649,1712947839648,-547.82065284,0.00020999,2]
[322313650,1712947839657,-273.76874797,0.00020999,2]
[322313653,1712947839667,-500.0,0.00020999,2]
[322313656,1712947839676,-200.0,0.00020999,2]
[322313658,1712947839685,-207.252083,0.00020999,2]
[322313660,1712947839698,-244.98585215,0.00020999,2]
[322313662,1712947839707,-249.20614783,0.00020999,2]
[322313663,1712947839718,-250.79385217,0.00020999,2]
[322313665,1712947839728,-500.0,0.00020999,2]
[322313667,1712947839738,-500.0,0.00020999,2]
[322313669,1712947839747,-503.23091339,0.00020999,2]
[322313670,1712947839757,-500.0,0.00020999,2]
[322313672,1712947839767,-500.0,0.00020999,2]
[322313674,1712947839777,-145.9752347,0.00020999,2]
[322313676,1712947839791,-216.48752384,0.00020999,2]
[322313678,1712947839801,-500.0,0.00020999,2]
[322313680,1712947839811,-571.00490686,0.00020999,2]
[322313682,1712947839824,-500.0,0.00020999,2]
[322313684,1712947839834,-500.0,0.00020999,2]
[322313687,1712947839845,-500.0,0.00020999,2]
[322313690,1712947839855,-588.7377323,0.00020999,2]
[322313694,1712947839869,-500.0,0.00020999,2]
[322313696,1712947839878,-500.0,0.00020999,2]
[322313700,1712947839888,-500.0,0.00020999,2]
[322313703,1712947839898,-500.0,0.00020999,2]
[322313706,1712947839908,-61623.76983699,0.00021,2]
[322313711,1712947839926,-308.4183778,0.00021,2]
[322313714,1712947839938,-281.68,0.00021,2]
[322313716,1712947839950,-304.0,0.00021,2]
[322313718,1712947839962,-3494.0720638,0.00021,2]
[322313720,1712947839975,-1729.77451985,0.00021,2]
[322313722,1712947839987,-23140.1776593,0.00021,2]
[322313725,1712947839998,-20105.1,0.00021,2]
[322313727,1712947840010,-755.25252942,0.00021,2]
[322313729,1712947840021,-7039.184024,0.00021,2]
[322313731,1712947840037,-1910.5,0.00021,2]
[322313733,1712947840049,-2724.0,0.00021,2]
[322313737,1712947840077,-337.58511107,0.00021,2]
[322313739,1712947840088,-2839081.58890516,0.00021,2]
[322313741,1712947840100,-4328992.96017839,0.00021,2]
[322313743,1712947840110,-1449.35234519,0.00021,2]
[322313745,1712947840119,-47456.64245358,0.00021,2]
[322313747,1712947840131,-519816.79422292,0.00021,2]
[322313749,1712947840140,-714.96210186,0.00021,2]
[322313751,1712947840150,-250.0,0.00021,3]
[322313753,1712947840159,-160.33,0.00021,2]
[322313755,1712947840168,-2355.73323332,0.00021,2]
[322313757,1712947840177,-209.97,0.00021,2]
[322313759,1712947840186,-5792.3837489,0.0002101,2]
[322313761,1712947840195,-512.0751611,0.00021024,2]
[322313763,1712947840205,-205.32,0.00021061,2]
[322313765,1712947840214,-166.98,0.00021123,2]
[322313767,1712947840223,-2000.0,0.000212,2]
[322313769,1712947840232,-200.0,0.000212,2]
[322313771,1712947840241,-260.40496,0.0002125,2]
[322313773,1712947840250,-3184.47745857,0.00021316,2]
[322313775,1712947840260,-435.398588,0.0002137,2]
[322313777,1712947840269,-194.86214778,0.00021412,2]
[322313779,1712947840278,-174.44,0.00021567,2]
[322313781,1712947840289,-170.53,0.00021661,2]
[322313783,1712947840298,-192.7,0.00021794,2]
[322313785,1712947840307,-604.2,0.00021861,3]
[322313787,1712947840316,-302.1,0.00021861,3]
[322313789,1712947840325,-260.40496,0.0002188,2]
[322313791,1712947840334,-250.0,0.00021918,2]
[322313793,1712947840344,-180.67,0.00021918,2]
[322313795,1712947840353,-250.0,0.00021918,2]
[322313797,1712947840363,-166.98,0.0002196,2]
[322313799,1712947840372,-425.75453347,0.00021983,2]
[322313801,1712947840381,-734.78105628,0.00021994,2]
[322313803,1712947840391,-756.64682377,0.00021994,2]
[322313805,1712947840400,-155.39919849,0.00021994,2]
[322313807,1712947840410,-984.91492677,0.00022,2]
[322313809,1712947840420,-783.91365264,0.00022,2]
[322313811,1712947840429,-904.0,0.00022153,2]
[322313813,1712947840439,-400.0,0.00022183,2]
[322313814,1712947840447,-435.398588,0.00022192,2]
[322313817,1712947840457,-1920.0,0.000222,2]
[322313818,1712947840466,-167.1,0.00022298,2]
[322313821,1712947840475,-210.0,0.0002233,2]
[322313823,1712947840485,-210.0,0.0002233,2]
[322313825,1712947840495,-894.79,0.00022334,2]
[322313826,1712947840505,-5074.84,0.0002243,2]
[322313828,1712947840514,-205.32,0.00022431,2]
[322313830,1712947840524,-260.40497,0.0002251,2]
[322313832,1712947840536,-502.0,0.000226,2]
[322313834,1712947840546,-166.98,0.00022797,2]
[322313836,1712947840555,-9580.35456223,0.00022812,2]
[322313854,1712947840710,-7524.71943962,0.000229,2]
[322313856,1712947840720,-61853.94580765,0.00022902,2]
[322313858,1712947840729,-189.894,0.00022959,2]
[322313860,1712947840739,-300.0,0.00023,3]
[322313862,1712947840748,-435.398588,0.00023014,2]
[322313864,1712947840758,-160.0,0.0002304,2]
[322313866,1712947840767,-209.97,0.000231,2]
[322313868,1712947840777,-260.40496,0.0002313,2]
[322313870,1712947840789,-160.33,0.000233,2]
[322313872,1712947840798,-1420.74457864,0.00023344,2]
[322313874,1712947840807,-174.52,0.00023345,2]
[322313876,1712947840818,-174.44,0.00023528,2]
[322313878,1712947840828,-180.34,0.0002363,2]
[322313879,1712947840838,-170.53,0.0002363,2]
[322313881,1712947840847,-166.98,0.00023635,2]
[322313883,1712947840856,-180.58,0.00023662,2]
[322313885,1712947840873,-260.40496,0.0002376,2]
[322313887,1712947840883,-435.398588,0.00023836,2]
[322313889,1712947840892,-1453.28824873,0.00023875,8]
[322313891,1712947840902,-225.19125525,0.00024,2]
[322313893,1712947840911,-192.7,0.00024107,2]
[322313895,1712947840921,-807.25333504,0.000245,2]
[322313897,1712947840930,-153.97663511,0.00024567,2]
[322313899,1712947840940,-894.79,0.00024598,2]
[322313902,1712947840950,-904.0,0.00024614,2]
[322313904,1712947840960,-400.0,0.00024648,2]
[322313906,1712947840970,-435.398588,0.00024658,2]
[322313908,1712947840979,-500.0,0.00024658,2]
[322313910,1712947840988,-7524.71943962,0.000249,2]
[322313912,1712947840998,-767.62233897,0.00025,2]
[322313914,1712947841007,-562.65039884,0.00025,2]
[322313916,1712947841016,-1361.64470333,0.00025,2]
[322313918,1712947841026,-155.65264416,0.00025,2]
[322313920,1712947841037,-155.0,0.00025,2]
[322313922,1712947841047,-2604.28990565,0.00025,2]
[322313924,1712947841056,-350.0,0.00025,3]
[322313925,1712947841067,-4814.8966987,0.00025,4]
[322313927,1712947841076,-746.03927988,0.00025,7]
[322313929,1712947841085,-5074.84,0.00025169,2]
[322313931,1712947841094,-9580.35456223,0.00025323,2]
[322313933,1712947841106,-61853.94580765,0.00025402,2]
[322313935,1712947841116,-435.398588,0.00025479,2]
[322313937,1712947841126,-174.44,0.00025489,2]
[322313939,1712947841135,-170.53,0.00025599,2]
[322313941,1712947841145,-1420.74457864,0.00026286,3]
[322313943,1712947841154,-435.398588,0.00026301,2]
[322313946,1712947841164,-160.0,0.00026331,2]
[322313948,1712947841173,-209.97,0.000264,2]
[322313949,1712947841183,-192.7,0.00026419,2]
[322313951,1712947841192,-57177.78440351,0.000265,2]
[322313953,1712947841201,-160.33,0.000268,2]
[322313955,1712947841211,-1453.28824873,0.00026851,12]
[322313957,1712947841220,-894.79,0.00026862,2]
[322313959,1712947841229,-7524.71943962,0.000269,2]
[322313961,1712947841239,-3570.94478052,0.00027,2]
[322313963,1712947841248,-1000.0,0.00027,2]
[322313966,1712947841258,-400.0,0.00027,3]
[322313968,1712947841267,-904.0,0.00027076,2]
[322313970,1712947841277,-235.70307694,0.00027343,2]
[322313972,1712947841290,-156.50367235,0.00027396,2]
[322313974,1712947841299,-158.47,0.00027397,2]
[322313976,1712947841309,-150.99,0.00027397,2]
[322313978,1712947841318,-308.22,0.00027397,2]
[322313980,1712947841328,-161.2,0.00027397,2]
[322313982,1712947841338,-164.740397,0.00027397,7]
[322313984,1712947841347,-164.740397,0.00027397,7]
[322313986,1712947841357,-152.13,0.00027397,2]
[322313988,1712947841367,-156.169069,0.00027397,7]
[322313990,1712947841376,-486.10529255,0.000274,2]
[322313992,1712947841385,-235.70307694,0.0002742,2]
[322313994,1712947841395,-174.44,0.00027449,2]
[322313996,1712947841404,-157.54479095,0.00027538,2]
[322313998,1712947841414,-170.53,0.00027568,2]
[322314000,1712947841425,-1755.44,0.00027609,2]
[322314002,1712947841434,-9580.35456223,0.00027834,2]
[322314004,1712947841443,-235.70307694,0.00027882,2]
[322314006,1712947841453,-61853.94580765,0.00027901,2]
[322314008,1712947841463,-20180.30698704,0.00028,2]
[322314010,1712947841473,-331.9172043,0.00028,2]
[322314012,1712947841482,-151.0,0.00028233,7]
[322314014,1712947841492,-153.97663511,0.00028233,2]
[322314016,1712947841501,-156.70883968,0.00028551,2]
[322314018,1712947841511,-156.70883968,0.00028682,2]
[322314020,1712947841521,-151.73788292,0.00028768,2]
[322314022,1712947841533,-151.73788292,0.00028855,2]
[322314024,1712947841544,-385.45754544,0.0002888,2]
[322314026,1712947841554,-7524.71943962,0.000289,2]
[322314028,1712947841564,-6746.82289371,0.00029,2]
[322314030,1712947841575,-5892.41339334,0.00029,2]
[322314032,1712947841585,-450.0,0.00029,3]
[322314034,1712947841595,-150.4,0.00029,2]
[322314036,1712947841606,-150.4,0.00029,2]
[322314038,1712947841615,-150.4,0.00029,2]
[322314040,1712947841625,-150.4,0.00029,2]
[322314042,1712947841634,-150.4,0.00029,2]
[322314044,1712947841644,-150.4,0.00029,2]
[322314046,1712947841653,-150.4,0.00029,2]
[322314048,1712947841663,-150.4,0.00029,2]
[322314050,1712947841672,-150.4,0.00029,2]
[322314052,1712947841682,-150.4,0.00029,2]
[322314054,1712947841691,-150.4,0.00029,2]
[322314056,1712947841700,-209.97,0.00029,2]
[322314058,1712947841709,-150.4,0.00029,2]
[322314060,1712947841718,-150.4,0.00029,2]
[322314062,1712947841728,-150.4,0.00029,2]
[322314063,1712947841737,-150.4,0.00029,2]
[322314065,1712947841746,-150.4,0.00029,2]
[322314067,1712947841756,-150.4,0.00029,2]
[322314070,1712947841765,-150.4,0.00029,2]
[322314071,1712947841775,-150.4,0.00029,2]
[322314074,1712947841788,-150.4,0.00029,2]
[322314076,1712947841797,-150.4,0.00029,2]
[322314078,1712947841806,-150.4,0.00029,2]
[322314080,1712947841816,-150.4,0.00029,2]
[322314082,1712947841825,-150.4,0.00029,2]
[322314084,1712947841834,-150.4,0.00029,2]
[322314086,1712947841843,-150.4,0.00029,2]
[322314088,1712947841853,-150.4,0.00029,2]
[322314090,1712947841865,-150.4,0.00029,2]
[322314092,1712947841875,-150.4,0.00029,2]
[322314094,1712947841884,-150.4,0.00029,2]
[322314096,1712947841894,-150.4,0.00029,2]
[322314098,1712947841905,-150.4,0.00029,2]
[322314100,1712947841914,-150.4,0.00029,2]
[322314101,1712947841923,-150.4,0.00029,2]
[322314102,1712947841933,-150.4,0.00029,2]
[322314103,1712947841944,-150.4,0.00029,2]
[322314104,1712947841954,-150.4,0.00029,2]
[322314105,1712947841963,-150.4,0.00029,2]
[322314106,1712947841972,-150.4,0.00029,2]
[322314107,1712947841982,-150.4,0.00029,2]
[322314108,1712947841991,-150.4,0.00029,2]
[322314109,1712947842001,-150.4,0.00029,2]
[322314111,1712947842010,-150.4,0.00029,2]
[322314113,1712947842021,-150.4,0.00029,2]
[322314115,1712947842031,-150.4,0.00029,2]
[322314117,1712947842043,-150.4,0.00029,2]
[322314119,1712947842053,-150.4,0.00029,2]
[322314121,1712947842062,-150.4,0.00029,2]
[322314123,1712947842073,-150.4,0.00029,2]
[322314125,1712947842082,-150.4,0.00029,2]
[322314127,1712947842091,-150.4,0.00029,2]
[322314129,1712947842100,-150.4,0.00029,2]
[322314131,1712947842109,-150.4,0.00029,2]
[322314133,1712947842119,-150.4,0.00029,2]
[322314135,1712947842128,-150.4,0.00029,2]
[322314137,1712947842138,-150.4,0.00029,2]
[322314139,1712947842148,-150.4,0.00029,2]
[322314141,1712947842157,-150.4,0.00029,2]
[322314143,1712947842166,-150.4,0.00029,2]
[322314145,1712947842175,-150.4,0.00029,2]
[322314147,1712947842184,-150.4,0.00029,2]
[322314149,1712947842194,-150.4,0.00029,2]
[322314151,1712947842203,-150.4,0.00029,2]
[322314153,1712947842212,-150.4,0.00029,2]
[322314155,1712947842222,-150.4,0.00029,2]
[322314157,1712947842231,-150.4,0.00029,2]
[322314159,1712947842240,-150.4,0.00029,2]
[322314161,1712947842249,-150.4,0.00029,2]
[322314163,1712947842259,-150.4,0.00029,2]
[322314165,1712947842268,-150.4,0.00029,2]
[322314167,1712947842277,-150.4,0.00029,2]
[322314169,1712947842290,-150.4,0.00029,2]
[322314171,1712947842298,-150.4,0.00029,2]
[322314173,1712947842307,-150.4,0.00029,2]
[322314175,1712947842316,-150.4,0.00029,2]
[322314177,1712947842325,-150.4,0.00029,2]
[322314179,1712947842334,-150.4,0.00029,2]
[322314181,1712947842343,-150.4,0.00029,2]
[322314183,1712947842352,-150.4,0.00029,2]
[322314185,1712947842361,-150.4,0.00029,2]
[322314187,1712947842371,-894.79,0.00029126,2]
[322314189,1712947842380,-1420.74457864,0.00029228,4]
[322314191,1712947842389,-174.44,0.0002941,2]
[322314193,1712947842399,-440.12783223,0.000295,3]
[322314195,1712947842408,-904.0,0.00029537,2]
[322314197,1712947842417,-170.53,0.00029537,2]
[322314199,1712947842427,-160.0,0.00029623,2]
[322314201,1712947842437,-1453.28824873,0.00029826,16]
[322314203,1712947842447,-8040.87582935,0.0002999,2]
[322314205,1712947842456,-16898.29816228,0.0003,3]
[322314207,1712947842465,-4116.16069357,0.0003,4]
[322314209,1712947842475,-406.9100857,0.0003,4]
[322314212,1712947842485,-3180.52861112,0.0003,2]
[322314214,1712947842495,-5964.67333619,0.0003,2]
[322314216,1712947842505,-594.96211674,0.0003,2]
[322314218,1712947842516,-1603.32385558,0.0003,4]
[322314220,1712947842525,-455.35697942,0.0003,2]
[322314222,1712947842538,-680.28979922,0.0003,4]
[322314224,1712947842546,-500.0,0.0003,3]
[322314226,1712947842556,-206.0,0.0003,2]
[322314228,1712947842565,-4929.48808061,0.0003,4]
[322314230,1712947842574,-5000.0,0.000301,4]
[322314231,1712947842583,-160.33,0.000301,2]
[322314233,1712947842592,-180.0,0.00030258,2]
[322314235,1712947842601,-167.81325132,0.00030334,7]
[322314237,1712947842610,-9580.35456223,0.00030345,2]
[322314242,1712947842620,-61853.94580765,0.00030401,2]
[322314248,1712947842629,-1584.0,0.00030497,5]
[322314254,1712947842640,-6688.0,0.000306,5]
[322314259,1712947842650,-157.54479095,0.00030607,7]
[322314265,1712947842660,-235.70307694,0.00030867,7]
[322314271,1712947842669,-7524.71943962,0.000309,2]
[322314276,1712947842679,-1385.08102742,0.00031,3]
[322314283,1712947842690,-500.0,0.00031,3]
[322314288,1712947842699,-151.73788292,0.00031023,7]
[322314293,1712947842708,-235.70307694,0.00031106,7]
[322314299,1712947842718,-156.70883968,0.00031165,7]
[322314305,1712947842727,-151.73788292,0.00031353,7]
[322314310,1712947842736,-894.79,0.0003139,2]
[322314315,1712947842746,-209.97,0.000314,2]
[322314319,1712947842755,-166.75047222,0.00031412,7]
[322314323,1712947842765,-156.50367235,0.000316,7]
[322314327,1712947842774,-157.71,0.00031644,2]
[322314330,1712947842785,-174.1941933,0.00031663,2]
[322314332,1712947842795,-151.73788292,0.00031872,7]
[322314335,1712947842804,-1946.13047979,0.000319,2]
[322314338,1712947842814,-153.97663511,0.000319,2]
[322314341,1712947842825,-3474.43842123,0.000319,2]
[322314344,1712947842834,-206.46540009,0.000319,2]
[322314347,1712947842844,-3407.14940158,0.000319,2]
[322314350,1712947842853,-9290.84251067,0.0003211,2]
[322314352,1712947842869,-151.73788292,0.00032155,7]
[322314354,1712947842878,-1420.74457864,0.00032169,5]
[322314356,1712947842888,-235.70307694,0.00032179,7]
[322314358,1712947842898,-156.70883968,0.00032182,7]
[322314360,1712947842908,-5261.17,0.00032603,2]
[322314362,1712947842917,-1835.8,0.00032603,2]
[322314364,1712947842926,-156.70883968,0.00032603,7]
[322314366,1712947842935,-1749.327265,0.000328,18]
[322314368,1712947842944,-1453.28824873,0.00032801,21]
[322314370,1712947842954,-151.73788292,0.00032846,7]
[322314372,1712947842964,-9580.35456223,0.00032856,2]
[322314374,1712947842973,-547.0,0.00032876,2]
[322314376,1712947842983,-501.0,0.00032876,2]
[322314378,1712947842994,-500.0,0.00032877,7]
[322314380,1712947843003,-500.0,0.00032877,7]
[322314382,1712947843013,-253.88045,0.00032877,7]
[322314384,1712947843022,-253.88045,0.00032877,7]
[322314386,1712947843031,-151.0,0.00032877,7]
[322314388,1712947843042,-151.0,0.00032877,7]
[322314390,1712947843051,-156.791906,0.00032877,7]
[322314392,1712947843061,-151.0,0.00032877,7]
[322314394,1712947843071,-151.0,0.00032877,7]
[322314396,1712947843081,-153.169492,0.00032877,7]
[322314398,1712947843091,-151.0,0.00032877,7]
[322314400,1712947843101,-153.443231,0.00032877,7]
[322314402,1712947843110,-151.0,0.00032877,7]
[322314404,1712947843120,-151.0,0.00032877,7]
[322314406,1712947843130,-151.0,0.00032877,7]
[322314408,1712947843140,-151.0,0.00032877,7]
[322314410,1712947843149,-163.068894,0.00032877,7]
[322314412,1712947843160,-151.0,0.00032877,7]
[322314414,1712947843170,-151.0,0.00032877,7]
[322314416,1712947843179,-151.0,0.00032877,7]
[322314418,1712947843188,-202.027168,0.00032877,7]
[322314420,1712947843198,-151.0,0.00032877,7]
[322314422,1712947843207,-151.0,0.00032877,7]
[322314424,1712947843217,-151.0,0.00032877,7]
[322314426,1712947843227,-151.0,0.00032877,7]
[322314428,1712947843237,-151.0,0.00032877,7]
[322314430,1712947843246,-151.0,0.00032877,7]
[322314432,1712947843256,-151.0,0.00032877,7]
[322314434,1712947843266,-151.0,0.00032877,7]
[322314436,1712947843276,-151.0,0.00032877,7]
[322314438,1712947843286,-151.0,0.00032877,7]
[322314440,1712947843295,-151.0,0.00032877,7]
[322314442,1712947843305,-151.0,0.00032877,7]
[322314444,1712947843314,-151.0,0.00032877,7]
[322314446,1712947843324,-151.0,0.00032877,7]
[322314448,1712947843333,-151.0,0.00032877,7]
[322314450,1712947843343,-151.0,0.00032877,7]
[322314452,1712947843352,-182.030433,0.00032877,7]
[322314454,1712947843361,-182.030433,0.00032877,7]
[322314456,1712947843370,-151.0,0.00032877,7]
[322314458,1712947843380,-151.0,0.00032877,7]
[322314460,1712947843390,-182.030433,0.00032877,7]
[322314462,1712947843399,-182.030433,0.00032877,7]
[322314464,1712947843409,-151.0,0.00032877,7]
[322314466,1712947843418,-155.00257,0.00032877,7]
[322314468,1712947843428,-151.0,0.00032877,7]
[322314470,1712947843437,-151.0,0.00032877,7]
[322314472,1712947843447,-151.0,0.00032877,7]
[322314474,1712947843456,-283.37153,0.00032877,7]
[322314476,1712947843466,-151.0,0.00032877,7]
[322314478,1712947843475,-151.0,0.00032877,7]
[322314480,1712947843485,-151.0,0.00032877,7]
[322314482,1712947843494,-151.0,0.00032877,7]
[322314484,1712947843504,-151.0,0.00032877,7]
[322314486,1712947843515,-151.0,0.00032877,7]
[322314488,1712947843525,-151.0,0.00032877,7]
[322314490,1712947843536,-166.33754,0.00032877,7]
[322314492,1712947843545,-151.0,0.00032877,7]
[322314494,1712947843555,-151.0,0.00032877,7]
[322314496,1712947843565,-151.0,0.00032877,7]
[322314498,1712947843575,-151.0,0.00032877,7]
[322314500,1712947843584,-151.0,0.00032877,7]
[322314502,1712947843594,-151.0,0.00032877,7]
[322314504,1712947843604,-156.497179,0.00032877,7]
[322314506,1712947843613,-151.0,0.00032877,7]
[322314508,1712947843623,-216.129351,0.00032877,7]
[322314510,1712947843632,-151.0,0.00032877,7]
[322314512,1712947843641,-216.129351,0.00032877,7]
[322314514,1712947843651,-151.0,0.00032877,7]
[322314516,1712947843660,-151.0,0.00032877,7]
[322314518,1712947843670,-151.0,0.00032877,7]
[322314520,1712947843679,-216.129351,0.00032877,7]
[322314522,1712947843689,-216.129351,0.00032877,7]
[322314524,1712947843698,-151.0,0.00032877,7]
[322314526,1712947843708,-151.0,0.00032877,7]
[322314528,1712947843717,-151.0,0.00032877,7]
[322314544,1712947843859,-261.245183,0.00032877,7]
[322314546,1712947843870,-613.416944,0.00032877,7]
[322314547,1712947843879,-613.416944,0.00032877,7]
[322314549,1712947843892,-613.416944,0.00032877,7]
[322314551,1712947843903,-613.416944,0.00032877,7]
[322314554,1712947843912,-150.55,0.00032877,2]
[322314556,1712947843922,-151.0,0.00032877,7]
[322314558,1712947843931,-151.0,0.00032877,7]
[322314560,1712947843943,-151.0,0.00032877,7]
[322314562,1712947843952,-151.0,0.00032877,7]
[322314564,1712947843962,-151.0,0.00032877,7]
[322314566,1712947843971,-151.0,0.00032877,7]
[322314567,1712947843980,-570.52799,0.00032877,7]
[322314568,1712947843990,-151.0,0.00032877,7]
[322314569,1712947843999,-151.0,0.00032877,7]
[322314570,1712947844009,-570.52799,0.00032877,7]
[322314571,1712947844019,-151.0,0.00032877,7]
[322314572,1712947844028,-151.0,0.00032877,7]
[322314573,1712947844040,-151.0,0.00032877,7]
[322314575,1712947844050,-151.0,0.00032877,7]
[322314577,1712947844062,-570.52799,0.00032877,7]
[322314579,1712947844071,-570.52799,0.00032877,7]
[322314581,1712947844081,-151.0,0.00032877,7]
[322314583,1712947844090,-151.0,0.00032877,7]
[322314585,1712947844100,-151.0,0.00032877,7]
[322314587,1712947844110,-194.808485,0.00032877,7]
[322314589,1712947844120,-151.0,0.00032877,7]
[322314591,1712947844129,-151.0,0.00032877,7]
[322314593,1712947844138,-194.808485,0.00032877,7]
[322314595,1712947844148,-151.0,0.00032877,7]
[322314597,1712947844156,-194.808485,0.00032877,7]
[322314599,1712947844170,-158.083713,0.00032877,7]